Workbook

Sheet Лист2
A1: № контракта | B1: Дата подписания контракта | C1: Служба | D1: Куратор контракта | E1: дата начала работ по контракту | F1: дата окончания работ по контракту | G1: Цена контракта, тыс. руб. | H1: Рентабельность, % | I1: Ответственный филиал
G6: =SUM(G8:G316)-G236-G222-G204-G203-G184-G175-G157-G139-G121-G114-G110-G103-G99 -> 1908665.189 | H6: =SUMIF(I8:I316,"<>Всего:",G8:G316) -> 1851898.757 | I6: =H6-G6 -> -56766.43178
A7: 6 | B7: 7 | C7: 8 | D7: 9 | E7: 10 | F7: 11 | G7: 12 | H7: 13 | I7: 14
A8: 5/76-12 | B8: 2012-05-10 | C8: =IF(OR(D8="Черняк",D8="Панов",D8="Ганицева",D8="Гордиенко",D8="Лужников"),"ГИ","ПС") -> ПС | D8: Иванов | E8: 2012-05-10 | F8: 2012-10-30 | G8: 20546.77189 | I8: Балаганский
A9: 2012.60285 | B9: 2012-05-11 | C9: =IF(OR(D9="Черняк",D9="Панов",D9="Ганицева",D9="Гордиенко",D9="Лужников"),"ГИ","ПС") -> ПС | D9: Иванов | G9: 781 | I9: Тулунский
A10: 2012.60283 | B10: 2012-06-15 | C10: =IF(OR(D10="Черняк",D10="Панов",D10="Ганицева",D10="Гордиенко",D10="Лужников"),"ГИ","ПС") -> ПС | D10: Иванов | G10: 1344.2 | I10: Тулунский
A11: 2012.57518 | B11: 2012-06-13 | C11: =IF(OR(D11="Черняк",D11="Панов",D11="Ганицева",D11="Гордиенко",D11="Лужников"),"ГИ","ПС") -> ПС | D11: Иванов | G11: 405.1 | I11: Тулунский
A12: 2012.52702 | B12: 2012-06-13 | C12: =IF(OR(D12="Черняк",D12="Панов",D12="Ганицева",D12="Гордиенко",D12="Лужников"),"ГИ","ПС") -> ПС | D12: Иванов | G12: 1941.223 | I12: Заларинский
A13: ЭА/13 | B13: 2012-06-13 | C13: =IF(OR(D13="Черняк",D13="Панов",D13="Ганицева",D13="Гордиенко",D13="Лужников"),"ГИ","ПС") -> ПС | D13: Иванов | G13: 4520.2651 | I13: Нижнеудинский
A14: 27 | C14: =IF(OR(D14="Черняк",D14="Панов",D14="Ганицева",D14="Гордиенко",D14="Лужников"),"ГИ","ПС") -> ПС | D14: Иванов | G14: 676.007 | I14: Балаганский (Усть-Уда)
A15: 2012.49630 | B15: 2012-05-31 | C15: =IF(OR(D15="Черняк",D15="Панов",D15="Ганицева",D15="Гордиенко",D15="Лужников"),"ГИ","ПС") -> ПС | D15: Иванов | G15: 380.994 | I15: Качугский (Жигалово)
A16: 2012.52359 | B16: 2012-06-05 | C16: =IF(OR(D16="Черняк",D16="Панов",D16="Ганицева",D16="Гордиенко",D16="Лужников"),"ГИ","ПС") -> ПС | D16: Иванов | G16: 2304.49064 | I16: Качугский (Жигалово)
C17: =IF(OR(D17="Черняк",D17="Панов",D17="Ганицева",D17="Гордиенко",D17="Лужников"),"ГИ","ПС") -> ПС | D17: Иванов | G17: 249.52 | I17: Зиминский
C18: =IF(OR(D18="Черняк",D18="Панов",D18="Ганицева",D18="Гордиенко",D18="Лужников"),"ГИ","ПС") -> ПС | D18: Иванов | G18: 307.07 | I18: Зиминский
A19: 2012.11719 | B19: 2012-02-29 | C19: =IF(OR(D19="Черняк",D19="Панов",D19="Ганицева",D19="Гордиенко",D19="Лужников"),"ГИ","ПС") -> ПС | D19: Иванов | G19: 1397.93448 | I19: Нижнеудинский
A20: 2012.39836 | B20: 2012-05-11 | C20: =IF(OR(D20="Черняк",D20="Панов",D20="Ганицева",D20="Гордиенко",D20="Лужников"),"ГИ","ПС") -> ПС | D20: Иванов | E20: 2012-05-11 | F20: 2012-07-25 | G20: 5067.1488 | I20: Усть-Илимский
C21: =IF(OR(D21="Черняк",D21="Панов",D21="Ганицева",D21="Гордиенко",D21="Лужников"),"ГИ","ПС") -> ПС | D21: Иванов | G21: 792.93 | I21: Заларинский
A22: 2012.69489 | B22: 2012-06-29 | C22: =IF(OR(D22="Черняк",D22="Панов",D22="Ганицева",D22="Гордиенко",D22="Лужников"),"ГИ","ПС") -> ПС | D22: Иванов | E22: 2012-06-25 | F22: 2012-09-30 | G22: 1267.36931 | I22: Заларинский
A23: 2012.74349 | B23: 2012-07-02 | C23: =IF(OR(D23="Черняк",D23="Панов",D23="Ганицева",D23="Гордиенко",D23="Лужников"),"ГИ","ПС") -> ПС | D23: Иванов | E23: 2012-07-02 | F23: 2012-07-09 | G23: 1163.02688 | H23: 0.1 | I23: Качугский
A24: 2012.62229 | B24: 2012-06-18 | C24: =IF(OR(D24="Черняк",D24="Панов",D24="Ганицева",D24="Гордиенко",D24="Лужников"),"ГИ","ПС") -> ПС | D24: Иванов | E24: 2012-06-18 | F24: 2012-09-30 | G24: 560.2 | I24: Тулунский
A25: 2012.62639 | B25: 2012-06-18 | C25: =IF(OR(D25="Черняк",D25="Панов",D25="Ганицева",D25="Гордиенко",D25="Лужников"),"ГИ","ПС") -> ПС | D25: Иванов | E25: 2012-06-18 | F25: 2012-08-02 | G25: 576.63 | I25: Тулунский
A26: 2012.62873 | B26: 2012-06-19 | C26: =IF(OR(D26="Черняк",D26="Панов",D26="Ганицева",D26="Гордиенко",D26="Лужников"),"ГИ","ПС") -> ПС | D26: Иванов | F26: 2012-07-19 | G26: 474.09118 | I26: Тулунский
A27: 2012.63475 | B27: 2012-06-18 | C27: =IF(OR(D27="Черняк",D27="Панов",D27="Ганицева",D27="Гордиенко",D27="Лужников"),"ГИ","ПС") -> ПС | D27: Иванов | E27: 2012-06-18 | F27: 2012-08-15 | G27: 631.35 | I27: Тулунский
A28: 2012.63115 | B28: 2012-06-19 | C28: =IF(OR(D28="Черняк",D28="Панов",D28="Ганицева",D28="Гордиенко",D28="Лужников"),"ГИ","ПС") -> ПС | D28: Иванов | E28: 2012-06-19 | F28: 2012-07-19 | G28: 907.1 | I28: Тулунский
A29: 2012.64547 | B29: 2012-06-20 | C29: =IF(OR(D29="Черняк",D29="Панов",D29="Ганицева",D29="Гордиенко",D29="Лужников"),"ГИ","ПС") -> ПС | D29: Иванов | E29: 2012-06-20 | F29: 2012-09-30 | G29: 868.56578 | I29: Заларинский
A30: 2012.62003 | B30: 2012-06-15 | C30: =IF(OR(D30="Черняк",D30="Панов",D30="Ганицева",D30="Гордиенко",D30="Лужников"),"ГИ","ПС") -> ПС | D30: Иванов | E30: 2012-06-15 | F30: 2012-06-30 | G30: 619.8605 | I30: Тулунский
A31: 01343000009612000028 | B31: 2012-07-02 | C31: =IF(OR(D31="Черняк",D31="Панов",D31="Ганицева",D31="Гордиенко",D31="Лужников"),"ГИ","ПС") -> ПС | D31: Иванов | E31: 2012-07-02 | F31: 2012-09-01 | G31: 1696 | H31: 0.1 | I31: Качугский
A32: 01343000009612000031 | B32: 2012-07-02 | C32: =IF(OR(D32="Черняк",D32="Панов",D32="Ганицева",D32="Гордиенко",D32="Лужников"),"ГИ","ПС") -> ПС | D32: Иванов | E32: 2012-07-02 | F32: 2012-09-01 | G32: 710 | H32: 0.1 | I32: Качугский
A33: 01343000009612000035 | B33: 2012-07-02 | C33: =IF(OR(D33="Черняк",D33="Панов",D33="Ганицева",D33="Гордиенко",D33="Лужников"),"ГИ","ПС") -> ПС | D33: Иванов | E33: 2012-07-02 | F33: 2012-09-01 | G33: 758.587 | H33: 0.1 | I33: Качугский
A34: 01343000009612000034 | B34: 2012-07-02 | C34: =IF(OR(D34="Черняк",D34="Панов",D34="Ганицева",D34="Гордиенко",D34="Лужников"),"ГИ","ПС") -> ПС | D34: Иванов | E34: 2012-07-02 | F34: 2012-09-01 | G34: 780 | H34: 0.1 | I34: Качугский
A35: 01343000009612000036 | B35: 2012-07-03 | C35: =IF(OR(D35="Черняк",D35="Панов",D35="Ганицева",D35="Гордиенко",D35="Лужников"),"ГИ","ПС") -> ПС | D35: Иванов | E35: 2012-07-03 | F35: 2012-09-01 | G35: 793 | H35: 0.1 | I35: Качугский
C36: =IF(OR(D36="Черняк",D36="Панов",D36="Ганицева",D36="Гордиенко",D36="Лужников"),"ГИ","ПС") -> ПС | D36: Иванов | G36: 608.82238 | I36: Усть-Илимский
C37: =IF(OR(D37="Черняк",D37="Панов",D37="Ганицева",D37="Гордиенко",D37="Лужников"),"ГИ","ПС") -> ПС | D37: Иванов | G37: 318 | I37: Усть-Илимский
C38: =IF(OR(D38="Черняк",D38="Панов",D38="Ганицева",D38="Гордиенко",D38="Лужников"),"ГИ","ПС") -> ПС | D38: Иванов | G38: 435.38 | I38: Зиминский
A39: 2012.66906 | B39: 2012-06-26 | C39: =IF(OR(D39="Черняк",D39="Панов",D39="Ганицева",D39="Гордиенко",D39="Лужников"),"ГИ","ПС") -> ПС | D39: Иванов | E39: 2012-06-26 | F39: 2012-09-01 | G39: 1460.88029 | I39: Зиминский
C40: =IF(OR(D40="Черняк",D40="Панов",D40="Ганицева",D40="Гордиенко",D40="Лужников"),"ГИ","ПС") -> ПС | D40: Иванов | G40: 452 | H40: 0.2 | I40: Усть-Ордынский
C41: =IF(OR(D41="Черняк",D41="Панов",D41="Ганицева",D41="Гордиенко",D41="Лужников"),"ГИ","ПС") -> ПС | D41: Иванов | G41: 465 | H41: 0.2 | I41: Усть-Ордынский
C42: =IF(OR(D42="Черняк",D42="Панов",D42="Ганицева",D42="Гордиенко",D42="Лужников"),"ГИ","ПС") -> ПС | D42: Иванов | G42: 819.7564 | H42: 0.2 | I42: Усть-Ордынский
C43: =IF(OR(D43="Черняк",D43="Панов",D43="Ганицева",D43="Гордиенко",D43="Лужников"),"ГИ","ПС") -> ПС | D43: Иванов | G43: 223.826 | I43: Иркутский
C44: =IF(OR(D44="Черняк",D44="Панов",D44="Ганицева",D44="Гордиенко",D44="Лужников"),"ГИ","ПС") -> ПС | D44: Иванов | G44: 485.425 | I44: Иркутский
C45: =IF(OR(D45="Черняк",D45="Панов",D45="Ганицева",D45="Гордиенко",D45="Лужников"),"ГИ","ПС") -> ПС | D45: Иванов | G45: 855.65025 | I45: Иркутский
C46: =IF(OR(D46="Черняк",D46="Панов",D46="Ганицева",D46="Гордиенко",D46="Лужников"),"ГИ","ПС") -> ПС | D46: Иванов | G46: 344.41 | I46: Иркутский
C47: =IF(OR(D47="Черняк",D47="Панов",D47="Ганицева",D47="Гордиенко",D47="Лужников"),"ГИ","ПС") -> ПС | D47: Иванов | G47: 410.055 | I47: Иркутский
C48: =IF(OR(D48="Черняк",D48="Панов",D48="Ганицева",D48="Гордиенко",D48="Лужников"),"ГИ","ПС") -> ПС | D48: Иванов | G48: 377.008 | I48: Иркутский
C49: =IF(OR(D49="Черняк",D49="Панов",D49="Ганицева",D49="Гордиенко",D49="Лужников"),"ГИ","ПС") -> ПС | D49: Иванов | G49: 929.6634 | I49: Иркутский
C50: =IF(OR(D50="Черняк",D50="Панов",D50="Ганицева",D50="Гордиенко",D50="Лужников"),"ГИ","ПС") -> ПС | D50: Иванов | G50: 1179.68 | I50: Иркутский
A51: 12-ЗК/12 | B51: 2012-06-18 | C51: =IF(OR(D51="Черняк",D51="Панов",D51="Ганицева",D51="Гордиенко",D51="Лужников"),"ГИ","ПС") -> ПС | D51: Иванов | E51: 2012-06-18 | F51: 2012-09-01 | G51: 494.37 | I51: Заларинский (Кутулик)
A52: 18-ЗК/12 | B52: 2012-06-19 | C52: =IF(OR(D52="Черняк",D52="Панов",D52="Ганицева",D52="Гордиенко",D52="Лужников"),"ГИ","ПС") -> ПС | D52: Иванов | E52: 2012-06-19 | F52: 2012-09-01 | G52: 489 | I52: Заларинский (Кутулик)
A53: 10-ЗК/13 | B53: 2012-06-18 | C53: =IF(OR(D53="Черняк",D53="Панов",D53="Ганицева",D53="Гордиенко",D53="Лужников"),"ГИ","ПС") -> ПС | D53: Иванов | E53: 2012-06-18 | F53: 2012-09-01 | G53: 490.48 | I53: Заларинский (Кутулик)
A54: 19-ЗК/14 | B54: 2012-06-18 | C54: =IF(OR(D54="Черняк",D54="Панов",D54="Ганицева",D54="Гордиенко",D54="Лужников"),"ГИ","ПС") -> ПС | D54: Иванов | E54: 2012-06-18 | F54: 2012-09-01 | G54: 413.2 | I54: Заларинский (Кутулик)
A55: 16-ЗК/15 | B55: 2012-06-19 | C55: =IF(OR(D55="Черняк",D55="Панов",D55="Ганицева",D55="Гордиенко",D55="Лужников"),"ГИ","ПС") -> ПС | D55: Иванов | E55: 2012-06-19 | F55: 2012-09-01 | G55: 393 | I55: Заларинский (Кутулик)
A56: 46-К/12 | B56: 2012-06-18 | C56: =IF(OR(D56="Черняк",D56="Панов",D56="Ганицева",D56="Гордиенко",D56="Лужников"),"ГИ","ПС") -> ПС | D56: Иванов | E56: 2012-06-15 | F56: 2012-09-30 | G56: 474.578 | I56: Заларинский
A57: 44-К/13 | B57: 2012-06-13 | C57: =IF(OR(D57="Черняк",D57="Панов",D57="Ганицева",D57="Гордиенко",D57="Лужников"),"ГИ","ПС") -> ПС | D57: Иванов | E57: 2012-06-15 | F57: 2012-09-30 | G57: 472.738 | I57: Заларинский
A58: 20-ЗК/15 | B58: 2012-06-19 | C58: =IF(OR(D58="Черняк",D58="Панов",D58="Ганицева",D58="Гордиенко",D58="Лужников"),"ГИ","ПС") -> ПС | D58: Иванов | E58: 2012-06-19 | F58: 2012-09-01 | G58: 323.3 | I58: Заларинский (Кутулик)
A59: 13-ЗК/16 | B59: 2012-06-18 | C59: =IF(OR(D59="Черняк",D59="Панов",D59="Ганицева",D59="Гордиенко",D59="Лужников"),"ГИ","ПС") -> ПС | D59: Иванов | E59: 2012-06-18 | F59: 2012-09-01 | G59: 266.64 | I59: Заларинский (Кутулик)
A60: 15-ЗК/17 | B60: 2012-06-18 | C60: =IF(OR(D60="Черняк",D60="Панов",D60="Ганицева",D60="Гордиенко",D60="Лужников"),"ГИ","ПС") -> ПС | D60: Иванов | E60: 2012-06-18 | F60: 2012-09-01 | G60: 496.292 | I60: Заларинский (Кутулик)
A61: 45-ЭА/12 | B61: 2012-06-20 | C61: =IF(OR(D61="Черняк",D61="Панов",D61="Ганицева",D61="Гордиенко",D61="Лужников"),"ГИ","ПС") -> ПС | D61: Иванов | E61: 2012-06-20 | F61: 2012-09-30 | G61: 792.93 | I61: Заларинский
A62: б/н | B62: 2012-06-22 | C62: =IF(OR(D62="Черняк",D62="Панов",D62="Ганицева",D62="Гордиенко",D62="Лужников"),"ГИ","ПС") -> ПС | D62: Иванов | E62: 2012-06-22 | F62: 2012-07-22 | G62: 290 | I62: Тулунский
A63: б/н | B63: 2012-06-01 | C63: =IF(OR(D63="Черняк",D63="Панов",D63="Ганицева",D63="Гордиенко",D63="Лужников"),"ГИ","ПС") -> ПС | D63: Иванов | E63: 2012-06-01 | F63: 2012-06-15 | G63: 222.859 | I63: Тулунский
A64: 2012.64907 | B64: 2012-06-25 | C64: =IF(OR(D64="Черняк",D64="Панов",D64="Ганицева",D64="Гордиенко",D64="Лужников"),"ГИ","ПС") -> ПС | D64: Иванов | E64: 2012-06-25 | F64: 2012-07-25 | G64: 404.4 | I64: Тулунский
A65: 2012.70903 | B65: 2012-06-30 | C65: =IF(OR(D65="Черняк",D65="Панов",D65="Ганицева",D65="Гордиенко",D65="Лужников"),"ГИ","ПС") -> ПС | D65: Иванов | E65: 2012-06-30 | F65: 2012-07-30 | G65: 593.9944 | H65: 0.2 | I65: Усть-Ордынский
A66: 02-ОЭА/12 | B66: 2012-07-10 | C66: =IF(OR(D66="Черняк",D66="Панов",D66="Ганицева",D66="Гордиенко",D66="Лужников"),"ГИ","ПС") -> ПС | D66: Иванов | E66: 2012-07-10 | F66: 2012-08-31 | G66: 926.3 | I66: Балаганский
A67: 03-ОЭА/12 | B67: 2012-07-09 | C67: =IF(OR(D67="Черняк",D67="Панов",D67="Ганицева",D67="Гордиенко",D67="Лужников"),"ГИ","ПС") -> ПС | D67: Иванов | E67: 2012-07-09 | F67: 2012-09-30 | G67: 1954.545 | I67: Балаганский
A68: 2012.70879 | B68: 2012-06-30 | C68: =IF(OR(D68="Черняк",D68="Панов",D68="Ганицева",D68="Гордиенко",D68="Лужников"),"ГИ","ПС") -> ПС | D68: Иванов | E68: 2012-06-30 | F68: 2012-08-14 | G68: 1566.13 | H68: 0.17 | I68: Усть-Ордынский
A69: 4 | C69: =IF(OR(D69="Черняк",D69="Панов",D69="Ганицева",D69="Гордиенко",D69="Лужников"),"ГИ","ПС") -> ПС | D69: Иванов | G69: 499 | I69: Качугский
A70: 2012.77405 | C70: =IF(OR(D70="Черняк",D70="Панов",D70="Ганицева",D70="Гордиенко",D70="Лужников"),"ГИ","ПС") -> ПС | D70: Иванов | E70: 2012-07-15 | F70: 2012-08-15 | G70: 581.86605 | H70: 0.17 | I70: Усть-Ордынский
A71: 2012.77384 | C71: =IF(OR(D71="Черняк",D71="Панов",D71="Ганицева",D71="Гордиенко",D71="Лужников"),"ГИ","ПС") -> ПС | D71: Иванов | E71: 2012-07-15 | F71: 2012-08-15 | G71: 775.8214 | H71: 0.17 | I71: Усть-Ордынский
A72: 2012.75710 | C72: =IF(OR(D72="Черняк",D72="Панов",D72="Ганицева",D72="Гордиенко",D72="Лужников"),"ГИ","ПС") -> ПС | D72: Иванов | F72: 2012-10-30 | G72: 1072.728 | I72: Иркутский
A73: 2012.80794 | C73: =IF(OR(D73="Черняк",D73="Панов",D73="Ганицева",D73="Гордиенко",D73="Лужников"),"ГИ","ПС") -> ПС | D73: Иванов | F73: 2012-11-30 | G73: 378.3233 | I73: Иркутский
A74: 2012.82481 | C74: =IF(OR(D74="Черняк",D74="Панов",D74="Ганицева",D74="Гордиенко",D74="Лужников"),"ГИ","ПС") -> ПС | D74: Иванов | F74: 2012-10-30 | G74: 823 | I74: Иркутский
A75: 2012.82439 | C75: =IF(OR(D75="Черняк",D75="Панов",D75="Ганицева",D75="Гордиенко",D75="Лужников"),"ГИ","ПС") -> ПС | D75: Иванов | F75: 2012-10-30 | G75: 1053 | I75: Иркутский
A76: 0134300084412000200-0208560-01 | C76: =IF(OR(D76="Черняк",D76="Панов",D76="Ганицева",D76="Гордиенко",D76="Лужников"),"ГИ","ПС") -> ПС | D76: Иванов | F76: 30 дней | G76: 2045.573 | I76: Зиминский
A77: ЭА/23 | B77: 2012-07-20 | C77: =IF(OR(D77="Черняк",D77="Панов",D77="Ганицева",D77="Гордиенко",D77="Лужников"),"ГИ","ПС") -> ПС | D77: Иванов | E77: 2012-07-23 | F77: 2012-11-01 | G77: 2254.36736 | I77: Нижнеудинский
A78: ЭА/25 | B78: 2012-07-20 | C78: =IF(OR(D78="Черняк",D78="Панов",D78="Ганицева",D78="Гордиенко",D78="Лужников"),"ГИ","ПС") -> ПС | D78: Иванов | E78: 2012-07-23 | F78: 2012-11-01 | G78: 1439.83438 | I78: Нижнеудинский
C79: =IF(OR(D79="Черняк",D79="Панов",D79="Ганицева",D79="Гордиенко",D79="Лужников"),"ГИ","ПС") -> ПС | D79: Иванов | I79: Усть-Ордынский
B80: 2012-07-23 | C80: =IF(OR(D80="Черняк",D80="Панов",D80="Ганицева",D80="Гордиенко",D80="Лужников"),"ГИ","ПС") -> ПС | D80: Иванов | F80: 30 дней | G80: 1124.35 | I80: Усть-Ордынский
C81: =IF(OR(D81="Черняк",D81="Панов",D81="Ганицева",D81="Гордиенко",D81="Лужников"),"ГИ","ПС") -> ПС | D81: Иванов | G81: 263 | I81: Усть-Ордынский
C82: =IF(OR(D82="Черняк",D82="Панов",D82="Ганицева",D82="Гордиенко",D82="Лужников"),"ГИ","ПС") -> ПС | D82: Иванов | G82: 479 | I82: Усть-Ордынский
C83: =IF(OR(D83="Черняк",D83="Панов",D83="Ганицева",D83="Гордиенко",D83="Лужников"),"ГИ","ПС") -> ПС | D83: Иванов | G83: 323.61 | I83: Усть-Ордынский
C84: =IF(OR(D84="Черняк",D84="Панов",D84="Ганицева",D84="Гордиенко",D84="Лужников"),"ГИ","ПС") -> ПС | D84: Иванов | G84: 430 | I84: Усть-Ордынский
C85: =IF(OR(D85="Черняк",D85="Панов",D85="Ганицева",D85="Гордиенко",D85="Лужников"),"ГИ","ПС") -> ПС | D85: Иванов | G85: 363.6 | I85: Балаганский
C86: =IF(OR(D86="Черняк",D86="Панов",D86="Ганицева",D86="Гордиенко",D86="Лужников"),"ГИ","ПС") -> ПС | D86: Иванов | G86: 460 | I86: Балаганский (Усть-Уда)
C87: =IF(OR(D87="Черняк",D87="Панов",D87="Ганицева",D87="Гордиенко",D87="Лужников"),"ГИ","ПС") -> ПС | D87: Иванов | G87: 106.061 | I87: Балаганский (Усть-Уда)
C88: =IF(OR(D88="Черняк",D88="Панов",D88="Ганицева",D88="Гордиенко",D88="Лужников"),"ГИ","ПС") -> ПС | D88: Иванов | G88: 297 | I88: Балаганский (Усть-Уда)
C89: =IF(OR(D89="Черняк",D89="Панов",D89="Ганицева",D89="Гордиенко",D89="Лужников"),"ГИ","ПС") -> ПС | D89: Иванов | G89: 324 | I89: Балаганский (Усть-Уда)
C90: =IF(OR(D90="Черняк",D90="Панов",D90="Ганицева",D90="Гордиенко",D90="Лужников"),"ГИ","ПС") -> ПС | D90: Иванов | G90: 209 | I90: Балаганский (Усть-Уда)
C91: =IF(OR(D91="Черняк",D91="Панов",D91="Ганицева",D91="Гордиенко",D91="Лужников"),"ГИ","ПС") -> ПС | D91: Иванов | G91: 480.654 | I91: Балаганский
C92: =IF(OR(D92="Черняк",D92="Панов",D92="Ганицева",D92="Гордиенко",D92="Лужников"),"ГИ","ПС") -> ПС | D92: Иванов | G92: 1200.793 | I92: Балаганский (Усть-Уда)
C93: =IF(OR(D93="Черняк",D93="Панов",D93="Ганицева",D93="Гордиенко",D93="Лужников"),"ГИ","ПС") -> ПС | D93: Иванов | G93: 1014.9995 | I93: Балаганский
C94: =IF(OR(D94="Черняк",D94="Панов",D94="Ганицева",D94="Гордиенко",D94="Лужников"),"ГИ","ПС") -> ПС | D94: Иванов | G94: 1020 | I94: Балаганский
A95: 66-к/12 | B95: 2012-07-16 | C95: =IF(OR(D95="Черняк",D95="Панов",D95="Ганицева",D95="Гордиенко",D95="Лужников"),"ГИ","ПС") -> ПС | D95: Иванов | E95: 2012-07-16 | F95: 2012-09-30 | G95: 167.77 | I95: Заларинский
A96: 14-ЗК/12 | B96: 2012-06-18 | C96: =IF(OR(D96="Черняк",D96="Панов",D96="Ганицева",D96="Гордиенко",D96="Лужников"),"ГИ","ПС") -> ПС | D96: Иванов | E96: 2012-06-19 | F96: 2012-09-01 | G96: 273.74 | I96: Заларинский (Кутулик)
A97: 17-ЗК/12 | B97: 2012-06-18 | C97: =IF(OR(D97="Черняк",D97="Панов",D97="Ганицева",D97="Гордиенко",D97="Лужников"),"ГИ","ПС") -> ПС | D97: Иванов | E97: 2012-06-19 | F97: 2012-09-01 | G97: 480 | I97: Заларинский (Кутулик)
A98: 22-ЗК/12 | B98: 2012-06-22 | C98: =IF(OR(D98="Черняк",D98="Панов",D98="Ганицева",D98="Гордиенко",D98="Лужников"),"ГИ","ПС") -> ПС | D98: Иванов | E98: 2012-06-22 | F98: 2012-09-01 | G98: 492.7 | I98: Заларинский (Кутулик)
A99: № 6д | B99: 2009-12-28 | C99: =IF(OR(D99="Черняк",D99="Панов",D99="Ганицева",D99="Гордиенко",D99="Лужников"),"ГИ","ПС") -> ПС | D99: Иванов | E99: 01.01.2010 г | F99: 31.12.2012 г | G99: 208422 | I99: Всего:
A100: № 6д | B100: 2009-12-28 | C100: =IF(OR(D100="Черняк",D100="Панов",D100="Ганицева",D100="Гордиенко",D100="Лужников"),"ГИ","ПС") -> ПС | D100: Иванов | E100: 01.01.2010 г | F100: 31.12.2012 г | I100: в т. ч. по филиалам:
A101: № 6д | B101: 2009-12-28 | C101: =IF(OR(D101="Черняк",D101="Панов",D101="Ганицева",D101="Гордиенко",D101="Лужников"),"ГИ","ПС") -> ПС | D101: Иванов | E101: 01.01.2010 г | F101: 31.12.2012 г | I101: Тулунский
A102: № 6д | B102: 2009-12-28 | C102: =IF(OR(D102="Черняк",D102="Панов",D102="Ганицева",D102="Гордиенко",D102="Лужников"),"ГИ","ПС") -> ПС | D102: Иванов | E102: 01.01.2010 г | F102: 31.12.2012 г | I102: Братский
A103: № 7д | B103: 28.12.2009 г. | C103: =IF(OR(D103="Черняк",D103="Панов",D103="Ганицева",D103="Гордиенко",D103="Лужников"),"ГИ","ПС") -> ПС | D103: Иванов | E103: 01.01.2010 г | F103: 31.12.2012 г | G103: 152765 | I103: Всего:
A104: № 7д | B104: 28.12.2009 г. | C104: =IF(OR(D104="Черняк",D104="Панов",D104="Ганицева",D104="Гордиенко",D104="Лужников"),"ГИ","ПС") -> ПС | D104: Иванов | E104: 01.01.2010 г | F104: 31.12.2012 г | I104: в т. ч. по филиалам:
A105: № 7д | B105: 28.12.2009 г. | C105: =IF(OR(D105="Черняк",D105="Панов",D105="Ганицева",D105="Гордиенко",D105="Лужников"),"ГИ","ПС") -> ПС | D105: Иванов | E105: 01.01.2010 г | F105: 31.12.2012 г | I105: Братский
A106: № 7д | B106: 28.12.2009 г. | C106: =IF(OR(D106="Черняк",D106="Панов",D106="Ганицева",D106="Гордиенко",D106="Лужников"),"ГИ","ПС") -> ПС | D106: Иванов | E106: 01.01.2010 г | F106: 31.12.2012 г | I106: Нижнеилимский
A107: № 8д | B107: 28.12.2009 г. | C107: =IF(OR(D107="Черняк",D107="Панов",D107="Ганицева",D107="Гордиенко",D107="Лужников"),"ГИ","ПС") -> ПС | D107: Иванов | E107: 01.01.2010 г. | F107: 31.12.2012 г. | G107: 61509 | I107: Усть-Кутский
A108: № 9д | B108: 04.01.2010 г. | C108: =IF(OR(D108="Черняк",D108="Панов",D108="Ганицева",D108="Гордиенко",D108="Лужников"),"ГИ","ПС") -> ПС | D108: Иванов | E108: 01.01.2010 г. | F108: 31.12.2012 г. | G108: 90401.72 | I108: Усть-Кутский
A109: № 15д | B109: 21.12.2012 г. | C109: =IF(OR(D109="Черняк",D109="Панов",D109="Ганицева",D109="Гордиенко",D109="Лужников"),"ГИ","ПС") -> ПС | D109: Иванов | E109: 01.01.2011 г. | F109: 21.12.2012 г. | G109: 9100 | I109: Усольский
A110: № 6м | B110: 28.12.2009 г. | C110: =IF(OR(D110="Черняк",D110="Панов",D110="Ганицева",D110="Гордиенко",D110="Лужников"),"ГИ","ПС") -> ПС | D110: Иванов | E110: 01.01.2010 г | F110: 31.12.2012 г | G110: 21272.184 | I110: Всего:
A111: № 6м | B111: 28.12.2009 г. | C111: =IF(OR(D111="Черняк",D111="Панов",D111="Ганицева",D111="Гордиенко",D111="Лужников"),"ГИ","ПС") -> ПС | D111: Иванов | E111: 01.01.2010 г | F111: 31.12.2012 г | I111: в т. ч. по филиалам:
A112: № 6м | B112: 28.12.2009 г. | C112: =IF(OR(D112="Черняк",D112="Панов",D112="Ганицева",D112="Гордиенко",D112="Лужников"),"ГИ","ПС") -> ПС | D112: Иванов | E112: 01.01.2010 г | F112: 31.12.2012 г | I112: Тулунский
A113: № 6м | B113: 28.12.2009 г. | C113: =IF(OR(D113="Черняк",D113="Панов",D113="Ганицева",D113="Гордиенко",D113="Лужников"),"ГИ","ПС") -> ПС | D113: Иванов | E113: 01.01.2010 г | F113: 31.12.2012 г | I113: Братский
A114: № 7м | B114: 28.12.2009 г. | C114: =IF(OR(D114="Черняк",D114="Панов",D114="Ганицева",D114="Гордиенко",D114="Лужников"),"ГИ","ПС") -> ПС | D114: Иванов | E114: 01.01.2010 г | F114: 31.12.2012 г | G114: 15210.691 | I114: Всего:
A115: № 7м | B115: 28.12.2009 г. | C115: =IF(OR(D115="Черняк",D115="Панов",D115="Ганицева",D115="Гордиенко",D115="Лужников"),"ГИ","ПС") -> ПС | D115: Иванов | E115: 01.01.2010 г | F115: 31.12.2012 г | I115: в т. ч. по филиалам:
A116: № 7м | B116: 28.12.2009 г. | C116: =IF(OR(D116="Черняк",D116="Панов",D116="Ганицева",D116="Гордиенко",D116="Лужников"),"ГИ","ПС") -> ПС | D116: Иванов | E116: 01.01.2010 г | F116: 31.12.2012 г | I116: Братский
A117: № 7м | B117: 28.12.2009 г. | C117: =IF(OR(D117="Черняк",D117="Панов",D117="Ганицева",D117="Гордиенко",D117="Лужников"),"ГИ","ПС") -> ПС | D117: Иванов | E117: 01.01.2010 г | F117: 31.12.2012 г | I117: Нижнеилимский
A118: № 8м | B118: 28.12.2009 г. | C118: =IF(OR(D118="Черняк",D118="Панов",D118="Ганицева",D118="Гордиенко",D118="Лужников"),"ГИ","ПС") -> ПС | D118: Иванов | E118: 01.01.2010 г. | F118: 31.12.2012 г. | G118: 14471.263 | I118: Усть-Кутский
A119: № 9м | B119: 04.01.2010 г. | C119: =IF(OR(D119="Черняк",D119="Панов",D119="Ганицева",D119="Гордиенко",D119="Лужников"),"ГИ","ПС") -> ПС | D119: Иванов | E119: 01.01.2010 г | F119: 31.12.2012 г. | G119: 8520.445 | I119: Усть-Кутский
A120: № 5м | B120: 29.02.2012 г. | C120: =IF(OR(D120="Черняк",D120="Панов",D120="Ганицева",D120="Гордиенко",D120="Лужников"),"ГИ","ПС") -> ПС | D120: Иванов | E120: 01.03.2012 г. | F120: 31.12.2012 г. | G120: 60.122 | I120: Усольский
A121: 5/150-10 от 24.12.2010г. | B121: 24.12.2010г. | C121: =IF(OR(D121="Черняк",D121="Панов",D121="Ганицева",D121="Гордиенко",D121="Лужников"),"ГИ","ПС") -> ПС | D121: Иванов | E121: 01.01.2011 г. | F121: 31.12.2013 г. | G121: 994488.355 | I121: Всего:
A122: 5/150-10 от 24.12.2010г. | B122: 24.12.2010г. | C122: =IF(OR(D122="Черняк",D122="Панов",D122="Ганицева",D122="Гордиенко",D122="Лужников"),"ГИ","ПС") -> ПС | D122: Иванов | I122: в т. ч. по филиалам:
A123: 5/150-10 от 24.12.2010г. | B123: 24.12.2010г. | C123: =IF(OR(D123="Черняк",D123="Панов",D123="Ганицева",D123="Гордиенко",D123="Лужников"),"ГИ","ПС") -> ПС | D123: Иванов | I123: Балаганский
A124: 5/150-10 от 24.12.2010г. | B124: 24.12.2010г. | C124: =IF(OR(D124="Черняк",D124="Панов",D124="Ганицева",D124="Гордиенко",D124="Лужников"),"ГИ","ПС") -> ПС | D124: Иванов | I124: Бодайбинский
A125: 5/150-10 от 24.12.2010г. | B125: 24.12.2010г. | C125: =IF(OR(D125="Черняк",D125="Панов",D125="Ганицева",D125="Гордиенко",D125="Лужников"),"ГИ","ПС") -> ПС | D125: Иванов | I125: Братский
A126: 5/150-10 от 24.12.2010г. | B126: 24.12.2010г. | C126: =IF(OR(D126="Черняк",D126="Панов",D126="Ганицева",D126="Гордиенко",D126="Лужников"),"ГИ","ПС") -> ПС | D126: Иванов | I126: Заларинский
A127: 5/150-10 от 24.12.2010г. | B127: 24.12.2010г. | C127: =IF(OR(D127="Черняк",D127="Панов",D127="Ганицева",D127="Гордиенко",D127="Лужников"),"ГИ","ПС") -> ПС | D127: Иванов | G127: 3010 | I127: Зиминский
A128: 5/150-10 от 24.12.2010г. | B128: 24.12.2010г. | C128: =IF(OR(D128="Черняк",D128="Панов",D128="Ганицева",D128="Гордиенко",D128="Лужников"),"ГИ","ПС") -> ПС | D128: Иванов | I128: Усть-Ордынский
A129: 5/150-10 от 24.12.2010г. | B129: 24.12.2010г. | C129: =IF(OR(D129="Черняк",D129="Панов",D129="Ганицева",D129="Гордиенко",D129="Лужников"),"ГИ","ПС") -> ПС | D129: Иванов | I129: Казачинско -Ленский
A130: 5/150-10 от 24.12.2010г. | B130: 24.12.2010г. | C130: =IF(OR(D130="Черняк",D130="Панов",D130="Ганицева",D130="Гордиенко",D130="Лужников"),"ГИ","ПС") -> ПС | D130: Иванов | G130: + | I130: Качугский
A131: 5/150-10 от 24.12.2010г. | B131: 24.12.2010г. | C131: =IF(OR(D131="Черняк",D131="Панов",D131="Ганицева",D131="Гордиенко",D131="Лужников"),"ГИ","ПС") -> ПС | D131: Иванов | I131: Нижнеилимский
A132: 5/150-10 от 24.12.2010г. | B132: 24.12.2010г. | C132: =IF(OR(D132="Черняк",D132="Панов",D132="Ганицева",D132="Гордиенко",D132="Лужников"),"ГИ","ПС") -> ПС | D132: Иванов | E132: нет региональных дорог | F132: нет региональных дорог | G132: нет региональных дорог | I132: Нижнеудинский
A133: 5/150-10 от 24.12.2010г. | B133: 24.12.2010г. | C133: =IF(OR(D133="Черняк",D133="Панов",D133="Ганицева",D133="Гордиенко",D133="Лужников"),"ГИ","ПС") -> ПС | D133: Иванов | I133: Тайшетский
A134: 5/150-10 от 24.12.2010г. | B134: 24.12.2010г. | C134: =IF(OR(D134="Черняк",D134="Панов",D134="Ганицева",D134="Гордиенко",D134="Лужников"),"ГИ","ПС") -> ПС | D134: Иванов | I134: Иркутский
A135: 5/150-10 от 24.12.2010г. | B135: 24.12.2010г. | C135: =IF(OR(D135="Черняк",D135="Панов",D135="Ганицева",D135="Гордиенко",D135="Лужников"),"ГИ","ПС") -> ПС | D135: Иванов | E135: нет региональных дорог | F135: нет региональных дорог | G135: нет региональных дорог | I135: Тулунский
A136: 5/150-10 от 24.12.2010г. | B136: 24.12.2010г. | C136: =IF(OR(D136="Черняк",D136="Панов",D136="Ганицева",D136="Гордиенко",D136="Лужников"),"ГИ","ПС") -> ПС | D136: Иванов | I136: Усольский
A137: 5/150-10 от 24.12.2010г. | B137: 24.12.2010г. | C137: =IF(OR(D137="Черняк",D137="Панов",D137="Ганицева",D137="Гордиенко",D137="Лужников"),"ГИ","ПС") -> ПС | D137: Иванов | I137: Усть-Илимский
A138: 5/150-10 от 24.12.2010г. | B138: 24.12.2010г. | C138: =IF(OR(D138="Черняк",D138="Панов",D138="Ганицева",D138="Гордиенко",D138="Лужников"),"ГИ","ПС") -> ПС | D138: Иванов | I138: Усть-Кутский
A139: 5/154-10 от 27.12.2010г. | B139: 27.12.2010г. | C139: =IF(OR(D139="Черняк",D139="Панов",D139="Ганицева",D139="Гордиенко",D139="Лужников"),"ГИ","ПС") -> ПС | D139: Иванов | E139: 01.01.2011 г. | F139: 31.12.2013 г. | G139: 1079198.165 | I139: Всего:
A140: 5/154-10 от 27.12.2010г. | B140: 27.12.2010г. | C140: =IF(OR(D140="Черняк",D140="Панов",D140="Ганицева",D140="Гордиенко",D140="Лужников"),"ГИ","ПС") -> ПС | D140: Иванов | E140: 01.01.2011 г. | F140: 31.12.2013 г. | I140: в т. ч. по филиалам:
A141: 5/154-10 от 27.12.2010г. | B141: 27.12.2010г. | C141: =IF(OR(D141="Черняк",D141="Панов",D141="Ганицева",D141="Гордиенко",D141="Лужников"),"ГИ","ПС") -> ПС | D141: Иванов | E141: 01.01.2011 г. | F141: 31.12.2013 г. | I141: Балаганский
A142: 5/154-10 от 27.12.2010г. | B142: 27.12.2010г. | C142: =IF(OR(D142="Черняк",D142="Панов",D142="Ганицева",D142="Гордиенко",D142="Лужников"),"ГИ","ПС") -> ПС | D142: Иванов | E142: 01.01.2011 г. | F142: 31.12.2013 г. | I142: Бодайбинский
A143: 5/154-10 от 27.12.2010г. | B143: 27.12.2010г. | C143: =IF(OR(D143="Черняк",D143="Панов",D143="Ганицева",D143="Гордиенко",D143="Лужников"),"ГИ","ПС") -> ПС | D143: Иванов | E143: 01.01.2011 г. | F143: 31.12.2013 г. | I143: Братский
A144: 5/154-10 от 27.12.2010г. | B144: 27.12.2010г. | C144: =IF(OR(D144="Черняк",D144="Панов",D144="Ганицева",D144="Гордиенко",D144="Лужников"),"ГИ","ПС") -> ПС | D144: Иванов | E144: 01.01.2011 г. | F144: 31.12.2013 г. | I144: Заларинский
A145: 5/154-10 от 27.12.2010г. | B145: 27.12.2010г. | C145: =IF(OR(D145="Черняк",D145="Панов",D145="Ганицева",D145="Гордиенко",D145="Лужников"),"ГИ","ПС") -> ПС | D145: Иванов | E145: 01.01.2011 г. | F145: 31.12.2013 г. | G145: 15037 | I145: Зиминский
A146: 5/154-10 от 27.12.2010г. | B146: 27.12.2010г. | C146: =IF(OR(D146="Черняк",D146="Панов",D146="Ганицева",D146="Гордиенко",D146="Лужников"),"ГИ","ПС") -> ПС | D146: Иванов | E146: 01.01.2011 г. | F146: 31.12.2013 г. | I146: Усть-Ордынский
A147: 5/154-10 от 27.12.2010г. | B147: 27.12.2010г. | C147: =IF(OR(D147="Черняк",D147="Панов",D147="Ганицева",D147="Гордиенко",D147="Лужников"),"ГИ","ПС") -> ПС | D147: Иванов | E147: 01.01.2011 г. | F147: 31.12.2013 г. | I147: Казачинско -Ленский
A148: 5/154-10 от 27.12.2010г. | B148: 27.12.2010г. | C148: =IF(OR(D148="Черняк",D148="Панов",D148="Ганицева",D148="Гордиенко",D148="Лужников"),"ГИ","ПС") -> ПС | D148: Иванов | E148: 01.01.2011 г. | F148: 31.12.2013 г. | G148: + | I148: Качугский
A149: 5/154-10 от 27.12.2010г. | B149: 27.12.2010г. | C149: =IF(OR(D149="Черняк",D149="Панов",D149="Ганицева",D149="Гордиенко",D149="Лужников"),"ГИ","ПС") -> ПС | D149: Иванов | E149: 01.01.2011 г. | F149: 31.12.2013 г. | I149: Нижнеилимский
A150: 5/154-10 от 27.12.2010г. | B150: 27.12.2010г. | C150: =IF(OR(D150="Черняк",D150="Панов",D150="Ганицева",D150="Гордиенко",D150="Лужников"),"ГИ","ПС") -> ПС | D150: Иванов | E150: 01.01.2011 г. | F150: 31.12.2013 г. | I150: Нижнеудинский
A151: 5/154-10 от 27.12.2010г. | B151: 27.12.2010г. | C151: =IF(OR(D151="Черняк",D151="Панов",D151="Ганицева",D151="Гордиенко",D151="Лужников"),"ГИ","ПС") -> ПС | D151: Иванов | E151: 01.01.2011 г. | F151: 31.12.2013 г. | I151: Тайшетский
A152: 5/154-10 от 27.12.2010г. | B152: 27.12.2010г. | C152: =IF(OR(D152="Черняк",D152="Панов",D152="Ганицева",D152="Гордиенко",D152="Лужников"),"ГИ","ПС") -> ПС | D152: Иванов | E152: 01.01.2011 г. | F152: 31.12.2013 г. | I152: Иркутский
A153: 5/154-10 от 27.12.2010г. | B153: 27.12.2010г. | C153: =IF(OR(D153="Черняк",D153="Панов",D153="Ганицева",D153="Гордиенко",D153="Лужников"),"ГИ","ПС") -> ПС | D153: Иванов | E153: 01.01.2011 г. | F153: 31.12.2013 г. | I153: Тулунский
A154: 5/154-10 от 27.12.2010г. | B154: 27.12.2010г. | C154: =IF(OR(D154="Черняк",D154="Панов",D154="Ганицева",D154="Гордиенко",D154="Лужников"),"ГИ","ПС") -> ПС | D154: Иванов | E154: 01.01.2011 г. | F154: 31.12.2013 г. | I154: Усольский
A155: 5/154-10 от 27.12.2010г. | B155: 27.12.2010г. | C155: =IF(OR(D155="Черняк",D155="Панов",D155="Ганицева",D155="Гордиенко",D155="Лужников"),"ГИ","ПС") -> ПС | D155: Иванов | E155: 01.01.2011 г. | F155: 31.12.2013 г. | I155: Усть-Илимский
A156: 5/154-10 от 27.12.2010г. | B156: 27.12.2010г. | C156: =IF(OR(D156="Черняк",D156="Панов",D156="Ганицева",D156="Гордиенко",D156="Лужников"),"ГИ","ПС") -> ПС | D156: Иванов | E156: 01.01.2011 г. | F156: 31.12.2013 г. | I156: Усть-Кутский
A157: 5/60-12 от 02.05.2012г. | B157: 02.05.2012г. | C157: =IF(OR(D157="Черняк",D157="Панов",D157="Ганицева",D157="Гордиенко",D157="Лужников"),"ГИ","ПС") -> ПС | D157: Иванов | E157: 02.05.2012г. | F157: 30.10.2012 г. | G157: =G159+G160+G161+G162+G163+G164+G165+G166+G167+G168+G169+G170+G171+G172+G173+G174 -> 199000 | I157: Всего:
A158: 5/60-12 от 02.05.2012г. | B158: 02.05.2012г. | C158: =IF(OR(D158="Черняк",D158="Панов",D158="Ганицева",D158="Гордиенко",D158="Лужников"),"ГИ","ПС") -> ПС | D158: Иванов | E158: 02.05.2012г. | F158: 30.10.2012 г. | G158: в т. ч. по филиалам: | I158: в т. ч. по филиалам:
A159: 5/60-12 от 02.05.2012г. | B159: 02.05.2012г. | C159: =IF(OR(D159="Черняк",D159="Панов",D159="Ганицева",D159="Гордиенко",D159="Лужников"),"ГИ","ПС") -> ПС | D159: Иванов | E159: 02.05.2012г. | F159: 30.10.2012 г. | G159: 16915 | I159: Усть-Ордынский
A160: 5/60-12 от 02.05.2012г. | B160: 02.05.2012г. | C160: =IF(OR(D160="Черняк",D160="Панов",D160="Ганицева",D160="Гордиенко",D160="Лужников"),"ГИ","ПС") -> ПС | D160: Иванов | E160: 02.05.2012г. | F160: 30.10.2012 г. | G160: 12935 | I160: Заларинский
A161: 5/60-12 от 02.05.2012г. | B161: 02.05.2012г. | C161: =IF(OR(D161="Черняк",D161="Панов",D161="Ганицева",D161="Гордиенко",D161="Лужников"),"ГИ","ПС") -> ПС | D161: Иванов | E161: 02.05.2012г. | F161: 30.10.2012 г. | G161: 15920 | I161: Балаганский
A162: 5/60-12 от 02.05.2012г. | B162: 02.05.2012г. | C162: =IF(OR(D162="Черняк",D162="Панов",D162="Ганицева",D162="Гордиенко",D162="Лужников"),"ГИ","ПС") -> ПС | D162: Иванов | E162: 02.05.2012г. | F162: 30.10.2012 г. | G162: 35820 | I162: Иркутский
A163: 5/60-12 от 02.05.2012г. | B163: 02.05.2012г. | C163: =IF(OR(D163="Черняк",D163="Панов",D163="Ганицева",D163="Гордиенко",D163="Лужников"),"ГИ","ПС") -> ПС | D163: Иванов | E163: 02.05.2012г. | F163: 30.10.2012 г. | G163: 11940 | I163: Качугский
A164: 5/60-12 от 02.05.2012г. | B164: 02.05.2012г. | C164: =IF(OR(D164="Черняк",D164="Панов",D164="Ганицева",D164="Гордиенко",D164="Лужников"),"ГИ","ПС") -> ПС | D164: Иванов | E164: 02.05.2012г. | F164: 30.10.2012 г. | G164: 8955 | I164: Зиминский
A165: 5/60-12 от 02.05.2012г. | B165: 02.05.2012г. | C165: =IF(OR(D165="Черняк",D165="Панов",D165="Ганицева",D165="Гордиенко",D165="Лужников"),"ГИ","ПС") -> ПС | D165: Иванов | E165: 02.05.2012г. | F165: 30.10.2012 г. | G165: 11940 | I165: Тайшетский
A166: 5/60-12 от 02.05.2012г. | B166: 02.05.2012г. | C166: =IF(OR(D166="Черняк",D166="Панов",D166="Ганицева",D166="Гордиенко",D166="Лужников"),"ГИ","ПС") -> ПС | D166: Иванов | E166: 02.05.2012г. | F166: 30.10.2012 г. | G166: 19900 | I166: Тулунский
A167: 5/60-12 от 02.05.2012г. | B167: 02.05.2012г. | C167: =IF(OR(D167="Черняк",D167="Панов",D167="Ганицева",D167="Гордиенко",D167="Лужников"),"ГИ","ПС") -> ПС | D167: Иванов | E167: 02.05.2012г. | F167: 30.10.2012 г. | G167: 8955 | I167: Нижнеудинский
A168: 5/60-12 от 02.05.2012г. | B168: 02.05.2012г. | C168: =IF(OR(D168="Черняк",D168="Панов",D168="Ганицева",D168="Гордиенко",D168="Лужников"),"ГИ","ПС") -> ПС | D168: Иванов | E168: 02.05.2012г. | F168: 30.10.2012 г. | G168: 6965 | I168: Бодайбинский
A169: 5/60-12 от 02.05.2012г. | B169: 02.05.2012г. | C169: =IF(OR(D169="Черняк",D169="Панов",D169="Ганицева",D169="Гордиенко",D169="Лужников"),"ГИ","ПС") -> ПС | D169: Иванов | E169: 02.05.2012г. | F169: 30.10.2012 г. | G169: 11940 | I169: Братский
A170: 5/60-12 от 02.05.2012г. | B170: 02.05.2012г. | C170: =IF(OR(D170="Черняк",D170="Панов",D170="Ганицева",D170="Гордиенко",D170="Лужников"),"ГИ","ПС") -> ПС | D170: Иванов | E170: 02.05.2012г. | F170: 30.10.2012 г. | G170: 8955 | I170: Казачинско -Ленский
A171: 5/60-12 от 02.05.2012г. | B171: 02.05.2012г. | C171: =IF(OR(D171="Черняк",D171="Панов",D171="Ганицева",D171="Гордиенко",D171="Лужников"),"ГИ","ПС") -> ПС | D171: Иванов | E171: 02.05.2012г. | F171: 30.10.2012 г. | G171: 2985 | I171: Усть-Кутский
A172: 5/60-12 от 02.05.2012г. | B172: 02.05.2012г. | C172: =IF(OR(D172="Черняк",D172="Панов",D172="Ганицева",D172="Гордиенко",D172="Лужников"),"ГИ","ПС") -> ПС | D172: Иванов | E172: 02.05.2012г. | F172: 30.10.2012 г. | G172: 1990 | I172: Усть-Илимский
A173: 5/60-12 от 02.05.2012г. | B173: 02.05.2012г. | C173: =IF(OR(D173="Черняк",D173="Панов",D173="Ганицева",D173="Гордиенко",D173="Лужников"),"ГИ","ПС") -> ПС | D173: Иванов | E173: 02.05.2012г. | F173: 30.10.2012 г. | G173: 2985 | I173: Нижнеилимский
A174: 5/60-12 от 02.05.2012г. | B174: 02.05.2012г. | C174: =IF(OR(D174="Черняк",D174="Панов",D174="Ганицева",D174="Гордиенко",D174="Лужников"),"ГИ","ПС") -> ПС | D174: Иванов | E174: 02.05.2012г. | F174: 30.10.2012 г. | G174: 19900 | I174: Усольский
A175: 5/58-12 от 27.04.2012г. | B175: 27.04.2012г. | C175: =IF(OR(D175="Черняк",D175="Панов",D175="Ганицева",D175="Гордиенко",D175="Лужников"),"ГИ","ПС") -> ПС | D175: Иванов | E175: 02.05.2012г. | F175: 30.10.2012 г. | G175: 21275 | I175: Всего:
A176: 5/58-12 от 27.04.2012г. | B176: 27.04.2012г. | C176: =IF(OR(D176="Черняк",D176="Панов",D176="Ганицева",D176="Гордиенко",D176="Лужников"),"ГИ","ПС") -> ПС | D176: Иванов | E176: 02.05.2012г. | F176: 30.10.2012 г. | I176: в т. ч. по филиалам:
A177: 5/58-12 от 27.04.2012г. | B177: 27.04.2012г. | C177: =IF(OR(D177="Черняк",D177="Панов",D177="Ганицева",D177="Гордиенко",D177="Лужников"),"ГИ","ПС") -> ПС | D177: Иванов | E177: 02.05.2012г. | F177: 30.10.2012 г. | G177: 8864.006 | I177: Усть-Ордынский
A178: 5/58-12 от 27.04.2012г. | B178: 27.04.2012г. | C178: =IF(OR(D178="Черняк",D178="Панов",D178="Ганицева",D178="Гордиенко",D178="Лужников"),"ГИ","ПС") -> ПС | D178: Иванов | E178: 02.05.2012г. | F178: 30.10.2012 г. | G178: 12410.994 | I178: Братский
A179: 5/76-12 | C179: =IF(OR(D179="Черняк",D179="Панов",D179="Ганицева",D179="Гордиенко",D179="Лужников"),"ГИ","ПС") -> ПС | D179: Иванов | F179: 2012-10-30 | G179: 20546.77189 | I179: Балаганский
A180: 5/75-12 | C180: =IF(OR(D180="Черняк",D180="Панов",D180="Ганицева",D180="Гордиенко",D180="Лужников"),"ГИ","ПС") -> ПС | D180: Иванов | F180: 2012-10-31 | G180: 73086.91009 | I180: Братский
C181: =IF(OR(D181="Черняк",D181="Панов",D181="Ганицева",D181="Гордиенко",D181="Лужников"),"ГИ","ПС") -> ПС | D181: Иванов | G181: 781 | I181: Тулунский
C182: =IF(OR(D182="Черняк",D182="Панов",D182="Ганицева",D182="Гордиенко",D182="Лужников"),"ГИ","ПС") -> ПС | D182: Иванов | G182: 1344.2 | I182: Тулунский
C183: =IF(OR(D183="Черняк",D183="Панов",D183="Ганицева",D183="Гордиенко",D183="Лужников"),"ГИ","ПС") -> ПС | D183: Иванов | G183: 405.1 | I183: Тулунский
A184: 20/111-12 от 05.07.2012г. | B184: 05.07.2012г. | C184: =IF(OR(D184="Черняк",D184="Панов",D184="Ганицева",D184="Гордиенко",D184="Лужников"),"ГИ","ПС") -> ПС | D184: Иванов | E184: 05.07.2012г. | F184: 01.12.2012г. | G184: 29850 | I184: Всего:
A185: 20/111-12 от 05.07.2012г. | B185: 05.07.2012г. | C185: =IF(OR(D185="Черняк",D185="Панов",D185="Ганицева",D185="Гордиенко",D185="Лужников"),"ГИ","ПС") -> ПС | D185: Иванов | E185: 05.07.2012г. | F185: 01.12.2012г. | I185: в т. ч. по филиалам:
A186: 20/111-12 от 05.07.2012г. | B186: 05.07.2012г. | C186: =IF(OR(D186="Черняк",D186="Панов",D186="Ганицева",D186="Гордиенко",D186="Лужников"),"ГИ","ПС") -> ПС | D186: Иванов | E186: 05.07.2012г. | F186: 01.12.2012г. | I186: Заларинский
A187: 20/111-12 от 05.07.2012г. | B187: 05.07.2012г. | C187: =IF(OR(D187="Черняк",D187="Панов",D187="Ганицева",D187="Гордиенко",D187="Лужников"),"ГИ","ПС") -> ПС | D187: Иванов | E187: 05.07.2012г. | F187: 01.12.2012г. | I187: Балаганский
A188: 20/111-12 от 05.07.2012г. | B188: 05.07.2012г. | C188: =IF(OR(D188="Черняк",D188="Панов",D188="Ганицева",D188="Гордиенко",D188="Лужников"),"ГИ","ПС") -> ПС | D188: Иванов | E188: 05.07.2012г. | F188: 01.12.2012г. | I188: Иркутский
A189: 20/111-12 от 05.07.2012г. | B189: 05.07.2012г. | C189: =IF(OR(D189="Черняк",D189="Панов",D189="Ганицева",D189="Гордиенко",D189="Лужников"),"ГИ","ПС") -> ПС | D189: Иванов | E189: 05.07.2012г. | F189: 01.12.2012г. | G189: 2000 | I189: Зиминский
A190: 20/111-12 от 05.07.2012г. | B190: 05.07.2012г. | C190: =IF(OR(D190="Черняк",D190="Панов",D190="Ганицева",D190="Гордиенко",D190="Лужников"),"ГИ","ПС") -> ПС | D190: Иванов | E190: 05.07.2012г. | F190: 01.12.2012г. | I190: Тайшетский
A191: 20/111-12 от 05.07.2012г. | B191: 05.07.2012г. | C191: =IF(OR(D191="Черняк",D191="Панов",D191="Ганицева",D191="Гордиенко",D191="Лужников"),"ГИ","ПС") -> ПС | D191: Иванов | E191: 05.07.2012г. | F191: 01.12.2012г. | I191: Тулунский
A192: 20/111-12 от 05.07.2012г. | B192: 05.07.2012г. | C192: =IF(OR(D192="Черняк",D192="Панов",D192="Ганицева",D192="Гордиенко",D192="Лужников"),"ГИ","ПС") -> ПС | D192: Иванов | E192: 05.07.2012г. | F192: 01.12.2012г. | I192: Усольский
A193: 20/111-12 от 05.07.2012г. | B193: 05.07.2012г. | C193: =IF(OR(D193="Черняк",D193="Панов",D193="Ганицева",D193="Гордиенко",D193="Лужников"),"ГИ","ПС") -> ПС | D193: Иванов | E193: 05.07.2012г. | F193: 01.12.2012г. | I193: Братский
A194: 20/111-12 от 05.07.2012г. | B194: 05.07.2012г. | C194: =IF(OR(D194="Черняк",D194="Панов",D194="Ганицева",D194="Гордиенко",D194="Лужников"),"ГИ","ПС") -> ПС | D194: Иванов | E194: 05.07.2012г. | F194: 01.12.2012г. | I194: Казачинско -Ленский
A195: 20/111-12 от 05.07.2012г. | B195: 05.07.2012г. | C195: =IF(OR(D195="Черняк",D195="Панов",D195="Ганицева",D195="Гордиенко",D195="Лужников"),"ГИ","ПС") -> ПС | D195: Иванов | E195: 05.07.2012г. | F195: 01.12.2012г. | I195: Усть-Кутский
A196: 20/111-12 от 05.07.2012г. | B196: 05.07.2012г. | C196: =IF(OR(D196="Черняк",D196="Панов",D196="Ганицева",D196="Гордиенко",D196="Лужников"),"ГИ","ПС") -> ПС | D196: Иванов | E196: 05.07.2012г. | F196: 01.12.2012г. | I196: Усть-Илимский
A197: 20/111-12 от 05.07.2012г. | B197: 05.07.2012г. | C197: =IF(OR(D197="Черняк",D197="Панов",D197="Ганицева",D197="Гордиенко",D197="Лужников"),"ГИ","ПС") -> ПС | D197: Иванов | E197: 05.07.2012г. | F197: 01.12.2012г. | I197: Нижнеилимский
A198: 20/111-12 от 05.07.2012г. | B198: 05.07.2012г. | C198: =IF(OR(D198="Черняк",D198="Панов",D198="Ганицева",D198="Гордиенко",D198="Лужников"),"ГИ","ПС") -> ПС | D198: Иванов | E198: 05.07.2012г. | F198: 01.12.2012г. | I198: Нижнеудинский
A199: 5/110-12 от 02.07.2012г. | B199: 02.07.2012г. | C199: =IF(OR(D199="Черняк",D199="Панов",D199="Ганицева",D199="Гордиенко",D199="Лужников"),"ГИ","ПС") -> ПС | D199: Иванов | E199: 2 года:2 июля2012г.-31 декабря 2013г. | F199: 31 декабря 2013г. | G199: 26482.4 | I199: Всего:
A200: 5/110-12 от 02.07.2012г. | B200: 02.07.2012г. | C200: =IF(OR(D200="Черняк",D200="Панов",D200="Ганицева",D200="Гордиенко",D200="Лужников"),"ГИ","ПС") -> ПС | D200: Иванов | E200: 2 года:2 июля2012г.-31 декабря 2013г. | F200: 31 декабря 2013г. | I200: в т. ч. по филиалам:
A201: 5/110-12 от 02.07.2012г. | B201: 02.07.2012г. | C201: =IF(OR(D201="Черняк",D201="Панов",D201="Ганицева",D201="Гордиенко",D201="Лужников"),"ГИ","ПС") -> ПС | D201: Иванов | E201: 2 года:2 июля2012г.-31 декабря 2013г. | F201: 31 декабря 2013г. | I201: Усть-Ордынский
A202: 5/110-12 от 02.07.2012г. | B202: 02.07.2012г. | C202: =IF(OR(D202="Черняк",D202="Панов",D202="Ганицева",D202="Гордиенко",D202="Лужников"),"ГИ","ПС") -> ПС | D202: Иванов | E202: 9июля 2012г. | F202: 31декабря 2013г. | G202: 192.495 | I202: субподряд
A203: 20/130-12 от 20 июля 2012г | C203: =IF(OR(D203="Черняк",D203="Панов",D203="Ганицева",D203="Гордиенко",D203="Лужников"),"ГИ","ПС") -> ПС | D203: Иванов | E203: 20 июля 2012г. | F203: 30.10.2012 г. | G203: 94645.335 | I203: Всего:
A204: 20/130-12 от 20 июля 2012г | C204: =IF(OR(D204="Черняк",D204="Панов",D204="Ганицева",D204="Гордиенко",D204="Лужников"),"ГИ","ПС") -> ПС | D204: Иванов | E204: 21 июля 2012г. | F204: 30.10.2012 г. | I204: в т. ч. по филиалам:
... 112 more rows
